Cogmind - Beta 11 @@@ ROGUE MODE // 2022.04.01 @ 23:11:37 Player: Crud Result: Destroyed by 39-8WV(z) with Zionite Laser-S Performance ------------- Evolutions (3) 1500 Regions Visited (10) 2000 Robots Destroyed (32) 160 Value Destroyed (951) 951 Prototype IDs (28) 560 Alien Tech Used (0) 0 Bonus (300) 300 TOTAL SCORE: 5471 Bonus ------- Aligned with FarCom 300 Cogmind --------- Core Integrity 0/700 Matter 300/300 Energy 210/315 System Corruption 0% Temperature Cool (7) Movement Treading (225) Ox1 Location -6/Deep Caves Parts ------- > --- POWER (1) -------- Neutrino Core > --- PROPULSION (4) --- Advanced Treads > --- UTILITY (5) ------ Improved Cooling System Medium Storage Unit Improved Terrain Scanner Hardlight Generator > --- WEAPON (3) ------- (None) > --- INVENTORY (10) --- Xenon Bombardment Thruster Layered Light Armor Plating Authchip [R/NC] Authchip [R/Combat] Authchip [Power] Authchip [Propulsion] Authchip [Processor] Authchip [Armor] Makeshift Hammer CR-A16's Pointy Stick Peak State ------------ > --- POWER ------------ Micro Nuclear Core > --- PROPULSION ------- Aerolev Unit Aerolev Unit Aerolev Unit Cooled Aerolev Unit > --- UTILITY ---------- Improved Heat Sink Large Storage Unit Weight Redist. System Layered Light Armor Plating Layered Light Armor Plating > --- WEAPON ----------- Plasma Cannon Enhanced Autogun Mini Assault Cannon > --- INVENTORY -------- Improved Ion Engine Light Nuclear Core Flying Fortress v7 Layered Light Armor Plating Heavy Particle Gun Heavy Particle Gun Enhanced Autogun Enhanced Autogun Makeshift Shrapnel Gun Mini Assault Cannon Mini Assault Cannon Rocket Launcher [Rating: 56] Favorites ----------- Power Neutrino Core Engine Light Ion Engine Power Core Neutrino Core Propulsion Aerolev Unit Treads Medium Treads Wheel Wheel Hover Unit Aerolev Unit Flight Unit Flying Fortress v7 Utility Improved Terrain Scanner Device Improved Terrain Scanner Storage Large Storage Unit Hackware Authchip [Armor] Protection Layered Light Armor Plating Weapon Heavy Particle Gun Energy Gun Heavy Particle Gun Energy Cannon Plasma Cannon Ballistic Gun Assault Rifle Ballistic Cannon Mini Assault Cannon Launcher Rocket Launcher Build | -11 -10 -10 -10 -9 -8 -8 -7 -7 -6 -6 ------- Run | Scr Mat Min Exi Min Mat Sto Fac Low Zio Dee Slots Evolved 6 | . . . . . 4 . 2 . . . Power . | . . . . . . . . . . . Propulsion 2 | . . . . . 2 . . . . . Utility 3 | . . . . . 2 . 1 . . . Weapon 1 | . . . . . . . 1 . . . Parts Attached 60 | 8 1 1 . 3 5 20 6 13 3 . Power 7 | 1 . 1 . . . 2 1 2 . . Engine 3 | 1 . 1 . . . 1 . . . . Core 4 | . . . . . . 1 1 2 . . Reactor . | . . . . . . . . . . . Propulsion 10 | 2 . . . . 1 4 . 3 . . Treads 2 | . . . . . . . . 2 . . Leg . | . . . . . . . . . . . Wheel 2 | 2 . . . . . . . . . . Hover 4 | . . . . . . 4 . . . . Flight 2 | . . . . . 1 . . 1 . . Utility 22 | 3 1 . . . 3 4 3 5 3 . Device 12 | 2 . . . . 1 2 1 4 2 . Storage 4 | 1 1 . . . . 1 . 1 . . Processor . | . . . . . . . . . . . Hackware 1 | . . . . . . . . . 1 . Protection 5 | . . . . . 2 1 2 . . . Artifact . | . . . . . . . . . . . Weapon 21 | 2 . . . 3 1 10 2 3 . . Energy Gun 6 | . . . . . . 3 1 2 . . Energy Cannon 1 | . . . . . . . 1 . . . Ballistic Gun 5 | 2 . . . 1 . 2 . . . . Ballistic Cannon 7 | . . . . 1 1 5 . . . . Launcher 2 | . . . . 1 . . . 1 . . Special Weapon . | . . . . . . . . . . . Impact Weapon . | . . . . . . . . . . . Slashing Weapon . | . . . . . . . . . . . Piercing Weapon . | . . . . . . . . . . . Special Melee Weapon . | . . . . . . . . . . . Unidentified Prototypes 5 | . . . . . . 4 1 . . . Parts Lost 24 | . . . . . . 6 1 13 . 4 Power 2 | . . . . . . . . 2 . . Propulsion 6 | . . . . . . . . 5 . 1 Utility 10 | . . . . . . 4 1 4 . 1 Weapon 6 | . . . . . . 2 . 2 . 2 Highest Loss Streak 9 | . . . . . . 5 1 9 . 4 To Critical Strikes . | . . . . . . . . . . . Average Slot Usage (%) 69 | . 100 100 100 100 72 76 96 35 75 73 Engine 2 | . 14 14 14 14 9 6 . . . . Core 4 | . . . . . . 2 7 5 7 7 Treads 5 | . . . . . . . . 4 15 14 Wheel 4 | . 28 28 28 28 . . . . . . Hover 4 | . . . . . . 15 30 . . . Device 14 | . 14 14 14 14 11 5 10 4 29 29 Storage 8 | . 14 14 14 14 9 9 7 5 7 7 Protection 4 | . . . . . 15 15 17 3 . . Energy Gun 7 | . . . . . . 1 2 8 15 13 Ballistic Gun 5 | . 28 28 28 20 9 7 7 . . . Ballistic Cannon 1 | . . . . 4 4 8 7 . . . Naked Turns 32 | . . . . . . . . 32 . . Heaviest Build 53 | 12 27 27 27 30 38 47 53 43 40 40 Greatest Support 50 | 20 20 20 20 20 50 50 23 50 50 50 Greatest Overweight (x) 14 | . 1 1 1 1 . 5 2 14 . 1 Average Overweight (x) . | . . 1 1 1 . . 1 1 . . Largest Inventory Capacity 15 | 8 15 15 15 15 15 15 15 15 10 10 Average Capacity 12 | 7 13 15 15 15 15 15 15 11 10 10 Most Carried 15 | 8 11 12 15 15 15 15 15 14 10 10 Average Carried 9 | 4 10 11 13 14 12 13 14 9 5 10 Final Capacity 15 | 8 15 15 15 15 15 15 15 10 10 10 Final Carried 15 | 8 11 12 15 15 13 15 14 5 10 10 Class Distribution -------------------- 41% | Mutant 38% | Derelict-Mutant 10% | Tank 5% | Skirmisher 4% | Scout Dominant Class ---------------- Mutant | -10/Materials Mutant | -10/Mines Mutant | -10/Exiles Skirmisher | -9/Mines Skirmisher | -8/Materials Mutant | -8/Storage Tank | -7/Factory Mutant | -7/Lower Caves Derelict-Mutant | -6/Zion Derelict-Mutant | -6/Deep Caves Resources | -11 -10 -10 -10 -9 -8 -8 -7 -7 -6 -6 ----------- Run | Scr Mat Min Exi Min Mat Sto Fac Low Zio Dee Matter Collected 1549 | 296 . 47 . 123 . 535 298 229 21 . Remotely . | . . . . . . . . . . . Salvage Created 1086 | 149 50 47 . 69 . 451 165 155 . . Parts 53 | 7 4 5 . 1 . 21 9 6 . . Haulers Intercepted 2 | . . . . . . 2 . . . . Recyclers Shooed 1 | . . . . 1 . . . . . . Parts Field Recycled . | . . . . . . . . . . . Retrieved Matter . | . . . . . . . . . . . Parts Self-Destructed 6 | . . . . . . . . 6 . . Prevented . | . . . . . . . . . . . Kills | -11 -10 -10 -10 -9 -8 -8 -7 -7 -6 -6 ------- Run | Scr Mat Min Exi Min Mat Sto Fac Low Zio Dee Combat Hostiles Destroyed 27 | . 3 3 . 3 . 11 2 5 . . Guns 12 | . 3 3 . . . 4 . 2 . . Cannons 9 | . . . . . . 7 1 1 . . AOE 5 | . . . . 3 . . . 2 . . Classes Destroyed 10 | 2 1 . . 1 . 4 1 1 . . Worker 1 | . . . . . . . 1 . . . Tunneler 2 | 2 . . . . . . . . . . Hauler 2 | . . . . . . 2 . . . . Recycler 3 | 1 . . . 1 . . 1 . . . Swarmer 7 | . 3 3 . . . . . 1 . . Grunt 10 | . . . . . . 7 . 3 . . Brawler 1 | . . . . . . . . 1 . . Sentry 4 | . . . . . . 3 1 . . . Hunter 2 | . . . . . . 1 1 . . . Assembled 3 | . . . . 3 . . . . . . Best Kill Streak 6 | 2 3 6 . 4 . 5 2 4 . . Combat Bots Only 6 | . 3 6 . 3 . 4 1 4 . . Max Kills in Single Turn 2 | 1 1 1 . 2 . 2 1 1 . . Gunslinging . | . . . . . . . . . . . Exploded 2 | . . . . 2 . . . 1 . . Melee . | . . . . . . . . . . . Uniques/NPCs Destroyed . | . . . . . . . . . . . Combat | -11 -10 -10 -10 -9 -8 -8 -7 -7 -6 -6 -------- Run | Scr Mat Min Exi Min Mat Sto Fac Low Zio Dee Damage Taken 4044 | . 45 103 . 106 . 1194 337 1925 . 334 Core 965 | . 9 7 . . . 236 62 626 . 25 Absorbed by Shields 60 | . . . . . . 8 . . . 52 Core Remaining (%) 83 | 100 . . . 93 . 57 . . . . Volleys Fired 88 | 4 5 5 . 5 1 43 11 14 . . Largest 3 | 2 2 2 . 2 2 2 3 3 . . Hottest 153 | 40 40 40 . 57 59 93 153 128 . . Shots Fired 182 | 8 10 10 . 10 2 81 29 32 . . Gun 103 | 8 10 10 . 5 1 39 8 22 . . Cannon 72 | . . . . . 1 42 21 8 . . Launcher 7 | . . . . 5 . . . 2 . . Special . | . . . . . . . . . . . Kinetic 140 | 8 10 10 . 5 2 72 18 15 . . Thermal 26 | . . . . . . . 11 15 . . Explosive 7 | . . . . 5 . . . 2 . . Electromagnetic 9 | . . . . . . 9 . . . . Robot Hit Streak 8 | 4 3 3 . 4 1 8 4 7 . . Robot Miss Streak 7 | 1 4 4 . 4 5 7 5 1 . . Penetration Max . | . . . . . . . . . . . Secondary Targets 2 | . . 2 . . . . . . . . Max Gunslinging Chain 1 | . . 1 . . . . . . . . Shots Hit Robots 111 | 5 4 4 . 5 2 55 11 25 . . Core Hits 61 | 3 3 4 . 8 . 28 4 11 . . Critical Kills 2 | . 1 . . . . . 1 . . . Critical Parts Destroyed 1 | 1 . . . . . . . . . . Critical Strikes 7 | 1 1 . . . . 3 1 1 . . Burn 1 | . . . . . . . . 1 . . Meltdown 1 | . . . . . . . 1 . . . Destroy 2 | 1 1 . . . . . . . . . Blast 3 | . . . . . . 3 . . . . Melee Attacks . | . . . . . . . . . . . Impact . | . . . . . . . . . . . Slashing . | . . . . . . . . . . . Piercing . | . . . . . . . . . . . Sneak Attacks . | . . . . . . . . . . . Combat Hostiles . | . . . . . . . . . . . Follow-up Attacks . | . . . . . . . . . . . Damage Inflicted 2701 | 85 58 62 . 384 29 1217 274 592 . . Guns 1185 | 85 58 62 . 60 14 546 38 322 . . Cannons 1086 | . . . . . 15 671 236 164 . . Explosions 430 | . . . . 324 . . . 106 . . Melee . | . . . . . . . . . . . Ramming . | . . . . . . . . . . . Kinetic 1786 | 85 58 62 . 60 29 1124 122 246 . . Thermal 392 | . . . . . . . 152 240 . . Explosive 430 | . . . . 324 . . . 106 . . Electromagnetic 93 | . . . . . . 93 . . . . Impact . | . . . . . . . . . . . Slashing . | . . . . . . . . . . . Piercing . | . . . . . . . . . . . Highest Corruption 11 | . . . . . . . . 11 11 . Average Corruption 10 | . . . . . . . . 10 11 . Corruption Purged . | . . . . . . . . . . . Corruption Blocked . | . . . . . . . . . . . Effects 57 | . . . . . . . . 56 1 . Message Errors 16 | . . . . . . . . 15 1 . Matter Fused 11 | . . . . . . . . 11 . . Heat Flow Errors 10 | . . . . . . . . 10 . . Energy Discharges 6 | . . . . . . . . 6 . . Data Loss (minor) 7 | . . . . . . . . 7 . . Data Loss (major) 3 | . . . . . . . . 3 . . Alerts 2 | . . . . . . . . 2 . . Weapon Failures 2 | . . . . . . . . 2 . . Overload Shots . | . . . . . . . . . . . Overflow Damage 19 | . . . . 15 . . . 4 . . Projectiles . | . . . . . . . . . . . Explosions 19 | . . . . 15 . . . 4 . . Melee . | . . . . . . . . . . . Knockbacks 6 | . . . . . . 4 . 2 . . Impact . | . . . . . . . . . . . Kinetic 6 | . . . . . . 4 . 2 . . Secondary . | . . . . . . . . . . . Self-Inflicted Damage 108 | . . . . 35 . . . 73 . . Shots 3 | . . . . 1 . . . 2 . . Rammed . | . . . . . . . . . . . Targets Rammed . | . . . . . . . . . . . Kicked . | . . . . . . . . . . . Crushed . | . . . . . . . . . . . Highest Temperature 664 | . . . . . 22 664 479 470 . . Average Temperature 240 | . . . . . 11 292 204 187 . . Received Heat Transfer 1271 | . . . . . . 570 24 579 . 98 Effects 50 | . . . . . . 39 7 4 . . Shutdowns 10 | . . . . . . 8 2 . . . Energy Bleed 4 | . . . . . . 1 2 1 . . Interference 10 | . . . . . . 8 1 1 . . Matter Decay 3 | . . . . . . 3 . . . . Short Circuit 6 | . . . . . . 4 1 1 . . Damage (minor) 4 | . . . . . . 2 1 1 . . Damage (major) 12 | . . . . . . 12 . . . . Damage (core) 1 | . . . . . . 1 . . . . Siege Activations . | . . . . . . . . . . . Robots Corrupted . | . . . . . . . . . . . Combat Hostiles . | . . . . . . . . . . . Parts Fried . | . . . . . . . . . . . Impact Corruptions . | . . . . . . . . . . . Robots Melted 1 | . . . . . . . 1 . . . Combat Hostiles 1 | . . . . . . . 1 . . . Parts Melted 1 | . . . . . . . 1 . . . Heat Transferred 842 | . . . . . . . 287 555 . . Parts Sabotaged . | . . . . . . . . . . . Parts Stolen . | . . . . . . . . . . . Parts Stripped . | . . . . . . . . . . . Power Chain Reactions . | . . . . . . . . . . . Missiles Intercepted . | . . . . . . . . . . . Alert | -11 -10 -10 -10 -9 -8 -8 -7 -7 -6 -6 ------- Run | Scr Mat Min Exi Min Mat Sto Fac Low Zio Dee Peak Influence 314 | 15 86 118 . 104 55 314 154 . . . Initial 51 | . 9 33 . . 40 22 51 . . . Average 70 | 6 17 106 . 20 43 141 65 . . . Maximum Alert Level 1 | . . . . . . 1 . . . . Low Security (%) 93 | 100 100 100 . 100 100 77 100 . . . Level 1 6 | . . . . . . 22 . . . . Level 2 . | . . . . . . . . . . . Level 3 . | . . . . . . . . . . . Level 4 . | . . . . . . . . . . . Level 5 . | . . . . . . . . . . . High Security . | . . . . . . . . . . . Max Security . | . . . . . . . . . . . Squads Dispatched 7 | . 1 . . . . 5 1 . . . Investigation . | . . . . . . . . . . . Extermination 1 | . . . . . . . 1 . . . Reinforcement 4 | . 1 . . . . 3 . . . . Assault . | . . . . . . . . . . . Garrison 2 | . . . . . . 2 . . . . Intercept . | . . . . . . . . . . . Searches Triggered . | . . . . . . . . . . . Construction Impeded 1 | . . . . . . 1 . . . . Haulers Reinforced . | . . . . . . . . . . . Active Scanning Responses . | . . . . . . . . . . . Cargo Convoy Interrupts . | . . . . . . . . . . . Stealth | -11 -10 -10 -10 -9 -8 -8 -7 -7 -6 -6 --------- Run | Scr Mat Min Exi Min Mat Sto Fac Low Zio Dee Distress Signals 2 | . . . . . . 2 . . . . Communications Jammed . | . . . . . . . . . . . Distress Signals . | . . . . . . . . . . . Times Spotted 52 | . 5 3 . 4 3 15 2 13 . 7 Peak Tracking Total 9 | . 3 3 . 3 3 4 1 4 . 9 Tactical Retreats 3 | . . . . . . . . 3 . . Traps | -11 -10 -10 -10 -9 -8 -8 -7 -7 -6 -6 ------- Run | Scr Mat Min Exi Min Mat Sto Fac Low Zio Dee Traps Triggered 2 | . . . . . . 2 . . . . Indirectly . | . . . . . . . . . . . Trap Hack Attempts . | . . . . . . . . . . . Triggered . | . . . . . . . . . . . Disarmed . | . . . . . . . . . . . Reprogrammed . | . . . . . . . . . . . Reused . | . . . . . . . . . . . Traps Extracted . | . . . . . . . . . . . Installed . | . . . . . . . . . . . Triggered . | . . . . . . . . . . . Machines | -11 -10 -10 -10 -9 -8 -8 -7 -7 -6 -6 ---------- Run | Scr Mat Min Exi Min Mat Sto Fac Low Zio Dee Machines Disabled 1 | . . . . . . . 1 . . . Max in Single Turn 1 | . . . . . . . 1 . . . Machines Sabotaged . | . . . . . . . . . . . Garrisons Compromised . | . . . . . . . . . . . Overloaded Fab Kills . | . . . . . . . . . . . Hacking | -11 -10 -10 -10 -9 -8 -8 -7 -7 -6 -6 --------- Run | Scr Mat Min Exi Min Mat Sto Fac Low Zio Dee Machines Accessed 15 | . 2 . 5 . . 7 1 . . . Terminals 10 | . 2 . . . . 7 1 . . . Fabricators . | . . . . . . . . . . . Repair Stations . | . . . . . . . . . . . Recycling Units . | . . . . . . . . . . . Scanalyzers . | . . . . . . . . . . . Garrison Access . | . . . . . . . . . . . Total Hacks 67 | . 5 . 50 . . 10 2 . . . Successful 63 | . 3 . 50 . . 9 1 . . . Failed 4 | . 2 . . . . 1 1 . . . Catastrophic . | . . . . . . . . . . . Database Lockouts . | . . . . . . . . . . . Manual 14 | . 2 . 1 . . 5 2 . 4 . Terminals 17 | . 5 . . . . 10 2 . . . Fabricators . | . . . . . . . . . . . Repair Stations . | . . . . . . . . . . . Recycling Units . | . . . . . . . . . . . Scanalyzers . | . . . . . . . . . . . Garrison Access . | . . . . . . . . . . . Terminal Hacks 57 | . 1 . 50 . . 6 . . . . Record 50 | . . . 49 . . 1 . . . . Robot Schematic 1 | . . . . . . 1 . . . . Robot Analysis 1 | . 1 . . . . . . . . . Open Door 3 | . . . . . . 3 . . . . Branch Access Points 1 | . . . . . . 1 . . . . EX-Prototype ID Bank 1 | . . . 1 . . . . . . . Fabricator Hacks . | . . . . . . . . . . . Repair Station Hacks . | . . . . . . . . . . . Recycling Unit Hacks . | . . . . . . . . . . . Scanalyzer . | . . . . . . . . . . . Garrison Access Hacks . | . . . . . . . . . . . Unauthorized Hacks 6 | . 2 . . . . 3 1 . . . Terminals 6 | . 2 . . . . 3 1 . . . Track 2 | . 1 . . . . 1 . . . . Botnet 3 | . 1 . . . . 1 1 . . . Operators 1 | . . . . . . 1 . . . . Fabricators . | . . . . . . . . . . . Repair Stations . | . . . . . . . . . . . Recycling Units . | . . . . . . . . . . . Scanalyzers . | . . . . . . . . . . . Garrison Access . | . . . . . . . . . . . Data Cores Recovered . | . . . . . . . . . . . Used . | . . . . . . . . . . . Hacking Detections 7 | . 2 . . . . 4 1 . . . Full Trace Events . | . . . . . . . . . . . Feedback Events . | . . . . . . . . . . . Feedback Blocked . | . . . . . . . . . . . Robot Schematics Acquired 4 | . . . . . . 1 . . 3 . Robots Built . | . . . . . . . . . . . Authchips . | . . . . . . . . . . . Time . | . . . . . . . . . . . Total Robot Build Rating . | . . . . . . . . . . . Part Schematics Acquired 14 | . . . . . . . . . 14 . Parts Built . | . . . . . . . . . . . Authchips . | . . . . . . . . . . . Time . | . . . . . . . . . . . Total Part Build Rating . | . . . . . . . . . . . Parts Repaired . | . . . . . . . . . . . Time . | . . . . . . . . . . . Parts Recycled . | . . . . . . . . . . . Recycled Matter . | . . . . . . . . . . . Retrieved Matter . | . . . . . . . . . . . Retrieved Components . | . . . . . . . . . . . Parts Scanalyzed . | . . . . . . . . . . . Part Schematics Acquired . | . . . . . . . . . . . Parts Damaged . | . . . . . . . . . . . Bothacking | -11 -10 -10 -10 -9 -8 -8 -7 -7 -6 -6 ------------ Run | Scr Mat Min Exi Min Mat Sto Fac Low Zio Dee Used RIF Installer . | . . . . . . . . . . . Robots Hacked . | . . . . . . . . . . . Non-combat . | . . . . . . . . . . . Combat . | . . . . . . . . . . . Robot Hacks Applied . | . . . . . . . . . . . Relay Couplers Released . | . . . . . . . . . . . Fabnet Peak Effective % . | . . . . . . . . . . . Robots Rewired . | . . . . . . . . . . . Allies Hacked . | . . . . . . . . . . . Hacks Repelled . | . . . . . . . . . . . Allies | -11 -10 -10 -10 -9 -8 -8 -7 -7 -6 -6 -------- Run | Scr Mat Min Exi Min Mat Sto Fac Low Zio Dee Total Allies 6 | . . . . . . . . . 6 . Largest Group 6 | . . . . . . . . . 6 6 Highest-Rated Group 167 | . . . . . . . . . 167 167 Highest-Rated Ally 51 | . . . . . . . . . 51 51 Total Orders . | . . . . . . . . . . . Ally Attacks 10 | . . . . . . . . . . 10 Total Damage 56 | . . . . . . . . . . 56 Kills . | . . . . . . . . . . . Allies Corrupted . | . . . . . . . . . . . Allies Melted . | . . . . . . . . . . . Intel | -11 -10 -10 -10 -9 -8 -8 -7 -7 -6 -6 ------- Run | Scr Mat Min Exi Min Mat Sto Fac Low Zio Dee Robot Analysis Total 1 | . 1 . . . . . . . . . Derelict Logs Recovered 4 | . . . . 1 . . . 1 2 . Drone Launches . | . . . . . . . . . . . Drone Recoveries . | . . . . . . . . . . . Exploration | -11 -10 -10 -10 -9 -8 -8 -7 -7 -6 -6 ------------- Run | Scr Mat Min Exi Min Mat Sto Fac Low Zio Dee Turns Passed 4729 | 67 222 54 265 231 42 412 524 1450 1325 137 Spaces Moved 3001 | 45 195 41 278 187 55 276 399 779 657 89 Core 519 | 3 . . . . . . . 516 . . Treads 1002 | . . . . . . . . 256 657 89 Legs . | . . . . . . . . . . . Wheels 743 | 42 195 41 278 187 . . . . . . Hover 456 | . . . . . . 56 399 1 . . Flight 281 | . . . . . 55 220 . 6 . . Fastest Speed 50 | 50 80 95 95 95 50 50 101 50 152 152 Average Speed 128 | 78 92 95 95 95 50 68 120 172 152 153 Slowest Speed 750 | 80 95 95 95 95 50 300 156 750 152 225 Overloaded Moves . | . . . . . . . . . . . Propulsion Burnouts . | . . . . . . . . . . . Robots Hopped 4 | . . . . . . 4 . . . . Cave-ins Triggered . | . . . . . . . . . . . Exploration Rate (%) 37 | 4 32 11 64 45 8 57 11 87 71 26 Regions Visited 10 Branch Regions 7 Pre-discovered Areas 5 | . . . 1 1 . . . . 3 . Known Exits Taken . | . . . . . . . . . . . Unknown Exits Taken 10 | 1 1 1 1 1 1 1 1 1 1 . Scrap Searched 7 | . . . . 1 . . . 5 1 . Spaces Dug . | . . . . . . . . . . . Terrain Destroyed 65 | . . . . 30 . 13 4 18 . . Melee . | . . . . . . . . . . . Projectile 17 | . . . . . . 13 4 . . . AOE 48 | . . . . 30 . . . 18 . . Terrain Rammed . | . . . . . . . . . . . Walls Destroyed . | . . . . . . . . . . . Machines Disabled . | . . . . . . . . . . . Actions | -11 -10 -10 -10 -9 -8 -8 -7 -7 -6 -6 --------- Run | Scr Mat Min Exi Min Mat Sto Fac Low Zio Dee Total 3684 | 66 229 46 279 230 66 414 423 858 984 89 Wait 434 | . 25 . . 30 . 26 . 40 313 . Move 2984 | 44 194 40 277 186 54 268 398 778 656 89 Hop 3 | . . . . . . 3 . . . . Pick Up 50 | 8 3 . 1 2 4 12 3 8 9 . Fast Attach 28 | 8 . . . 2 . 7 4 7 . . Attach 17 | . . . . . 3 5 1 6 2 . Detach 6 | 1 . . . . . 3 . 2 . . Swap 15 | . 1 1 . 1 2 8 1 . 1 . Drop 33 | 1 1 . 1 4 2 13 5 3 3 . Fire 88 | 4 5 5 . 5 1 43 11 14 . . Melee . | . . . . . . . . . . . Ram . | . . . . . . . . . . . Kick . | . . . . . . . . . . . Crush . | . . . . . . . . . . . Escape Stasis 26 | . . . . . . 26 . . . . Rewire . | . . . . . . . . . . . Trap . | . . . . . . . . . . . Miscellaneous . | . . . . . . . . . . . Route ------- -11/Scrapyard -10/Materials (discovered 2 exits: [*Mat] / [*Min]) -10/Mines -10/Exiles -9/Mines -8/Materials -8/Storage (discovered 2 exits: *Fac / Rec) -7/Factory -7/Lower Caves -6/Zion -6/Deep Caves History --------- Turn | Location | Event 22 | -11/Scrapyard | Discovered new exit (range 16) 68 | -11/Scrapyard | Entered Materials 262 | -10/Materials | Discovered new exit (range 14) 277 | -10/Materials | Discovered new exit (range 16) 290 | -10/Materials | Entered Mines 311 | -10/Mines | Build established: Mutant 340 | -10/Mines | Deemed a non-threat by the Exiles lab entrance 340 | -10/Mines | Discovered new exit (range 5) 344 | -10/Mines | Entered Exiles 371 | -10/Exiles | Met 8R-AWN 388 | -10/Exiles | Met EX-HEX 422 | -10/Exiles | Met EX-BIN 442 | -10/Exiles | Aligned with FarCom system 443 | -10/Exiles | Given EX-Vault access code 488 | -10/Exiles | Opened EX-Vault 496 | -10/Exiles | Found Flying Fortress v7 517 | -10/Exiles | Warned to stay clear of 0b10 Research branches 528 | -10/Exiles | Exiles lab attacked by MAIN.C 554 | -10/Exiles | Learned location of Zion (-6) 598 | -10/Exiles | Discovered new exit (range 14) 609 | -10/Exiles | Left Exiles lab with Flying Fortress v7 609 | -10/Exiles | Entered Mines 632 | -9/Mines | Met a Derelict bent on vengeance 725 | -9/Mines | A weapon hastily lodged in a ceiling crevice suddenly fell to the ground 775 | -9/Mines | Assembled infested the area 830 | -9/Mines | Discovered new exit (range 12) 840 | -9/Mines | Entered Materials 840 | -8/Materials | Evolved 4 slots: Propulsion x2, Utility x2 872 | -8/Materials | Discovered new exit (range 12) 882 | -8/Materials | Entered Storage 918 | -8/Storage | Identified exit to Recycling 1188 | -8/Storage | Garrison activated, responded to threat 1202 | -8/Storage | Lost 5 parts (3u2w) 1238 | -8/Storage | Discovered new exit (range 8) 1294 | -8/Storage | Entered Factory 1294 | -7/Factory | Evolved 2 slots: Utility x1, Weapon x1 1750 | -7/Factory | Discovered new exit (range 15) 1818 | -7/Factory | Entered Lower Caves 1845 | -7/Lower Caves | System corruption reached 10% 1897 | -7/Lower Caves | Lost 9 parts (1p4n3u1w) 2553 | -7/Lower Caves | Spotted B-75 Beast 2566 | -7/Lower Caves | Core integrity fell below 50% 2606 | -7/Lower Caves | Core integrity fell below 20% 2620 | -7/Lower Caves | Lost 4 parts (1p1n1u1w) 2724 | -7/Lower Caves | Learned 8 Factory zone layouts 3211 | -7/Lower Caves | Build established: Derelict-Mutant 3261 | -7/Lower Caves | A Derelict revealed a hidden shortcut to a safe place 3268 | -7/Lower Caves | Entered Zion 3323 | -6/Zion | System corruption cleaned by Quarantine Array 3645 | -6/Zion | Learned Factory terminal intel 3930 | -6/Zion | Learned location of Armory (-4) 4009 | -6/Zion | Acquired unknown access codes intercepted by a Zionite 4272 | -6/Zion | Gained Derelict followers 4380 | -6/Zion | Found CR-A16's Pointy Stick 4536 | -6/Zion | Opened final containment barrier to the Deep Caves 4555 | -6/Zion | Discovered new exit (range 5) 4559 | -6/Zion | Saw the warning signs outside the Deep Caves entrance 4593 | -6/Zion | Entered Deep Caves 4593 | -6/Deep Caves | Accompanied by 6 allies 4722 | -6/Deep Caves | Z-Facility disabled 4728 | -6/Deep Caves | Attacked by Z-Imprinter 4730 | -6/Deep Caves | Destroyed by 39-8WV(z) with Zionite Laser-S Last Messages --------------- Containment barrier disabled. Signature recorded so we know who to blame when the place goes to hell. Again. 04555_ EXIT=FOUND 04559_ The room is plastered with warning signs of various forms. LOCATION=UNKNOWN GOAL=ESCAPE 04596_ ST-0WP(p): "Anyone have a map of this place? Because I'm almost certain we're headed in a bad direction." 04675_ NEW_ZION: Z-Facility proximity alert. 04703_ 3Z-SPR(g) destroyed. 04711_ 7Q-G8H(g) destroyed. 04711_ ST-0WP(p) destroyed. 04718_ Seismic Detector destroyed. 04721_ F6-5RC(s) destroyed. 04722_ Z-Facility disabled. 04725_ Med. Treads destroyed. 04726_ Hvy. Laser destroyed. 04728_ Hvy. Particle Gun destroyed. Z-Imprinter: GET AWAY FROM HERE! I've worked too hard for our future just to have you ruin everything! Map ----- +----------------------------------------------------+ | | | | | | | | | | | | | | | | | | | | | | | | | ????????????????????????????????##???????????????? | | ??????????????????????????????#? *?????########### | | ???????????????????????????????? =??###" ! | | ??????????????#????????????????# !?## !%* | | ?????????????## #??????#######?# ### [ =%[[ | | ?????????????# ###### # ### ## % %= =[* | | ???????????? zzz # ## ! ! | | ???????????? z | | ????????????# z | | ??????????????# z | | ??????????????## | | ??????????????# " """ """""" | | ??????????????# """""""""""""" | | ??????????????# @ """""""""""""" | | ??????????# """""""""??""" | | ????????????[# """????????? | | ?????????????## """????????""" | | ??????????????# ""?????????""" | | ?????????????# ""???????????" | | ?????????????## "???????????" | | ?????????????## ""???????????? | | ??????????????# "???????????? | | ????????????? "???????????? | | ?????????????? "???????????? | | ?????????????? ????????????? | | ???????????????? ??????????????? | | ?????????????????? ????????????????? | | ????????????????????? ???????????????????? | | ??????????????????????? ?????????????????????? | | ?????????????????????????????????????????????????? | | ?????????????????????????????????????????????????? | | ?????????????????????????????????????????????????? | | ?????????????????????????????????????????????????? | | ?????????????????????????????????????????????????? | | ?????????????????????????????????????????????????? | | ?????????????????????????????????????????????????? | | ?????????????????????????????????????????????????? | | ?????????????????????????????????????????????????? | +----------------------------------------------------+ Best States ------------- Heat Dissipation 61 Energy Generation 19 Energy Capacity 315 Matter Stores 300 Matter Capacity 300 Sight Range 16 Terrain Scan Range 16 Terrain Scan Density 10 Additional Mass Support 6 Armor Coverage 450 Evasion (%) 60 Recoil Reduction 2 Authchip Count 6 Item Schematics ----------------- Power Sword | -6/Zion | Archive Imp. Arc Projector | -6/Zion | Archive KE Penetrator | -6/Zion | Archive Phase Cannon | -6/Zion | Archive Mak. Cloaking Device | -6/Zion | Archive Imp. Launcher Guidance Computer | -6/Zion | Archive Imp. Medium Treads | -6/Zion | Archive Adv. Cryofiber Web | -6/Zion | Archive Lgt. Antimatter Reactor | -6/Zion | Archive Lgt. Fission Core | -6/Zion | Archive Antigrav System | -6/Zion | Archive Imp. System Restoration Module | -6/Zion | Archive Arm. Medium Treads | -6/Zion | Archive Fission Core | -6/Zion | Archive Robot Schematics ------------------ X-57 Shotgunner | -8/Storage | Hacked L-41 Fighter | -6/Zion | Archive A-02 Transporter | -6/Zion | Archive A-15 Conveyor | -6/Zion | Archive Fabricated ------------ Nothing Alien Tech Used ----------------- None Achievements -------------- None Challenges ------------ None Game ------ Seed LightRecyclingRouter Manual? 0 Play Time 00:59:58 Cumulative 18.6 hours Start 2022.03.20 @ 14:03:10 End 2022.04.01 @ 23:11:37 Sessions 5 Manual Loads 0 Difficulty Rogue Special Mode None Game No. 19 Rogue 19 Adventurer 0 Explorer 0 Win Type - Total 0 Types 0/0/0/0/0/0/0/0/0 Lore% 22 Gallery% 27 Achievement% 20 Wizard Run 0 Options --------- ASCII 0 Keyboard 0 Movement Mouse Keybinds 0 Fullscreen 1 Font 18/SmallcapsGlow Map View 76x50 Tactical HUD 1 Map Filters NONE Filters NONE Steam 1 RUN: a4c3d32a-dc02-48b8-a0ac-934f8926974b